bitfinex/quotes_BTCUSD_20250607
["timestamp","ask_amount","ask_price","bid_price","bid_amount"]
[1749336863923,0.8239885,105980.0,105970.0,0.22647774]
[1749336864103,0.81734952,105980.0,105970.0,0.22647774]
[1749336864243,0.83505347,105980.0,105970.0,0.22647774]
[1749336864457,0.8239885,105980.0,105970.0,0.22647774]
[1749336864853,0.84169245,105980.0,105970.0,0.22647774]
[1749336865816,0.8239885,105980.0,105970.0,0.22647774]
[1749336866021,0.83505349,105980.0,105970.0,0.22647774]
[1749336866225,0.84169247,105980.0,105970.0,0.22647774]
[1749336866444,0.83505349,105980.0,105970.0,0.22647774]
[1749336866798,0.8239885,105980.0,105970.0,0.22647774]
[1749336867004,0.84169247,105980.0,105970.0,0.22647774]
[1749336867446,0.84169245,105980.0,105970.0,0.22647774]
[1749336867899,0.6146754,105980.0,105970.0,0.65829435]
[1749336868119,0.59033243,105980.0,105970.0,0.69594195]
[1749336868756,0.60803515,105980.0,105970.0,0.69594195]
[1749336869430,0.60803513,105980.0,105970.0,0.69594195]
[1749336869632,0.59033243,105980.0,105970.0,0.69594195]
[1749336869831,0.60803513,105980.0,105970.0,0.69594195]
[1749336870035,0.60803513,105980.0,105970.0,0.99110195]
[1749336870250,0.61747005,105980.0,105970.0,0.99110195]
[1749336870454,0.59976737,105980.0,105970.0,0.99110195]
[1749336870860,0.61747004,105980.0,105970.0,0.99110195]
[1749336871063,0.59976737,105980.0,105970.0,0.99110195]
[1749336871268,0.61747004,105980.0,105970.0,0.99110195]
[1749336871482,0.61747004,105980.0,105970.0,0.69722082]
[1749336871688,0.6092024,105980.0,105970.0,0.69722082]
[1749336871894,0.62690518,105980.0,105970.0,0.69722082]
[1749336872101,0.63634038,105980.0,105970.0,0.69722082]
[1749336872522,0.62690518,105980.0,105970.0,0.69722082]
[1749336872947,0.62689333,105980.0,105970.0,0.69722082]
[1749336873159,0.6186376,105980.0,105970.0,0.69722082]
[1749336873397,0.63632853,105980.0,105970.0,0.69722082]
[1749336873602,0.60802336,105980.0,105970.0,0.99110195]
[1749336874008,0.6174583,105980.0,105970.0,0.99110195]
[1749336874618,0.61745765,105980.0,105970.0,0.99110195]
[1749336874995,0.61745769,105980.0,105970.0,0.99110195]
[1749336875200,0.61745752,105980.0,105970.0,0.99110195]
[1749336876356,0.59976737,105980.0,105970.0,0.99110195]
[1749336876561,0.61745004,105980.0,105970.0,0.99110195]
[1749336876802,0.59976737,105980.0,105970.0,0.99110195]
[1749336877125,0.61745004,105980.0,105970.0,0.99110195]
[1749336877325,0.61745004,105980.0,105970.0,0.95335741]
[1749336877495,0.61745004,105980.0,105970.0,0.96279386]
[1749336877902,0.60801379,105980.0,105970.0,0.97223022]
[1749336878106,0.63631993,105980.0,105970.0,0.94392087]
[1749336878434,0.82503534,105980.0,105970.0,0.95335741]
[1749336878641,0.1120171,105980.0,105970.0,1.34174662]
[1749336878806,0.1120171,105980.0,105970.0,1.06674689]
[1749336879005,0.1120171,105980.0,105970.0,1.71935499]
[1749336879242,0.1120171,105980.0,105970.0,1.42547386]
[1749336880208,0.1120171,105980.0,105970.0,1.35021789]
[1749336880628,0.14032324,105980.0,105970.0,0.68554095]
[1749336880839,0.31960298,105980.0,105970.0,0.13399309]
[1749336881064,0.31960298,105980.0,105970.0,0.39135948]
[1749336881264,0.31960298,105980.0,105960.0,0.55737695]
[1749336881265,0.1981692,105970.0,105960.0,0.55737695]
[1749336881468,0.02830846,105970.0,105960.0,0.63505706]
[1749336881668,0.03774491,105970.0,105960.0,0.63505706]
[1749336882202,0.02830846,105970.0,105960.0,0.63505706]
[1749336882404,0.02830846,105970.0,105960.0,0.63501706]
[1749336882811,0.02830855,105970.0,105960.0,0.63501706]
[1749336883215,0.02830846,105970.0,105960.0,0.63501706]
[1749336883576,0.02830855,105970.0,105960.0,0.63501706]
[1749336883916,0.0188721,105970.0,105960.0,0.63501706]
[1749336884062,0.02830846,105970.0,105960.0,0.63501706]
[1749336885067,0.0188721,105970.0,105960.0,0.63501706]
[1749336885479,0.02830846,105970.0,105960.0,0.63501706]
[1749336886083,0.02830846,105970.0,105960.0,0.66322639]
[1749336886769,0.22647757,105970.0,105960.0,0.65378949]
[1749336887082,0.03774491,105970.0,105960.0,0.66322639]
[1749336887860,0.03774491,105970.0,105960.0,0.66318639]
[1749336888454,0.03774491,105970.0,105960.0,0.64798639]
[1749336888659,0.22647757,105970.0,105960.0,0.23783294]
[1749336888876,0.22647819,105970.0,105960.0,0.25670726]
[1749336889439,0.21704201,105970.0,105960.0,0.03964685]
[1749336889644,0.20760565,105970.0,105960.0,0.23783466]
[1749336891157,0.23990565,105970.0,105960.0,0.03020933]
[1749336891356,0.22103266,105970.0,105960.0,0.002]
[1749336891985,0.51587266,105970.0,105960.0,0.002]
[1749336892200,0.53352208,105970.0,105960.0,0.002]
[1749336892394,0.53352209,105970.0,105960.0,0.002]
[1749336892648,0.53352236,105970.0,105960.0,0.002]
[1749336893025,0.53352268,105970.0,105960.0,0.002]
[1749336893226,0.54114133,105970.0,105960.0,0.002]
[1749336893385,0.54214133,105970.0,105960.0,0.002]
[1749336893605,0.54214145,105970.0,105960.0,0.002]
[1749336893803,0.54214134,105970.0,105960.0,0.002]
[1749336894172,0.53552243,105970.0,105960.0,0.002]
[1749336894360,0.51787266,105970.0,105960.0,0.002]
[1749336894515,0.54214207,105970.0,105960.0,0.002]
[1749336894718,0.53552314,105970.0,105960.0,0.002]
[1749336894925,0.54214207,105970.0,105960.0,0.002]
[1749336895577,0.53552314,105970.0,105960.0,0.002]
[1749336895709,0.54214207,105970.0,105960.0,0.002]
[1749336896145,0.51787266,105970.0,105960.0,0.002]
[1749336896317,0.55180767,105970.0,105960.0,0.002]
[1749336897213,0.54518874,105970.0,105960.0,0.002]
[1749336897389,0.54516544,105970.0,105960.0,0.002]
[1749336897616,0.52753826,105970.0,105960.0,0.002]
[1749336897753,0.54516545,105970.0,105960.0,0.002]
[1749336898200,0.88511539,105970.0,105960.0,0.002]
[1749336898579,0.8674882,105970.0,105960.0,0.002]
[1749336898783,0.88510952,105970.0,105960.0,0.002]
[1749336899240,0.8674882,105970.0,105960.0,0.002]
[1749336899442,0.88510957,105970.0,105960.0,0.002]
[1749336900834,0.88510799,105970.0,105960.0,0.002]
[1749336901034,0.8674882,105970.0,105960.0,0.002]
[1749336901214,0.88510799,105970.0,105960.0,0.002]
[1749336901422,0.885108,105970.0,105960.0,0.002]
[1749336902354,0.884108,105970.0,105960.0,0.002]
[1749336902755,0.886108,105970.0,105960.0,0.002]
[1749336902979,0.8684882,105970.0,105960.0,0.002]
[1749336903131,0.88810802,105970.0,105960.0,0.002]
[1749336904689,0.88810803,105970.0,105960.0,0.002]
[1749336905617,0.88811048,105970.0,105960.0,0.002]
[1749336905831,0.89471891,105970.0,105960.0,0.002]
[1749336906038,0.89472199,105970.0,105960.0,0.002]
[1749336906260,0.89472307,105970.0,105960.0,0.002]
[1749336906469,0.87709771,105970.0,105960.0,0.002]
[1749336906677,0.99112255,105970.0,105960.0,0.002]
[1749336906885,0.97349719,105970.0,105960.0,0.002]
[1749336907088,0.96688768,105970.0,105960.0,0.002]
[1749336907293,0.99112311,105970.0,105960.0,0.002]
[1749336907524,0.99112479,105970.0,105960.0,0.002]
[1749336907731,0.99112546,105970.0,105960.0,0.002]
[1749336908777,0.98451539,105970.0,105960.0,0.002]
[1749336908979,0.97349807,105970.0,105960.0,0.002]
[1749336909183,0.99112578,105970.0,105960.0,0.002]
[1749336909588,0.99114025,105970.0,105960.0,0.002]
[1749336910001,0.99117884,105970.0,105960.0,0.002]
[1749336910617,0.97351254,105970.0,105960.0,0.002]
[1749336910818,0.96688768,105970.0,105960.0,0.002]
[1749336910958,0.99117884,105970.0,105960.0,0.002]
[1749336911586,0.99097884,105970.0,105960.0,0.002]
[1749336911969,1.07619398,105970.0,105960.0,0.002]
[1749336912242,1.07619371,105970.0,105960.0,0.002]
[1749336912455,1.06515244,105970.0,105960.0,0.002]
[1749336912660,1.07619371,105970.0,105960.0,0.002]
[1749336912885,1.08281847,105970.0,105960.0,0.002]
[1749336913423,1.08281859,105970.0,105960.0,0.002]
[1749336914122,1.08281893,105970.0,105960.0,0.002]
[1749336914335,1.06515256,105970.0,105960.0,0.002]
[1749336914512,1.08283359,105970.0,105960.0,0.002]
[1749336915091,1.06515656,105970.0,105960.0,0.002]
[1749336915421,1.08283411,105970.0,105960.0,0.002]
[1749336916079,1.07178572,105970.0,105960.0,0.002]
[1749336916282,1.08946313,105970.0,105960.0,0.002]
[1749336916597,1.07178571,105970.0,105960.0,0.002]
[1749336916800,1.08946307,105970.0,105960.0,0.002]
[1749336917568,1.08946304,105970.0,105960.0,0.002]
[1749336917905,1.0651567,105970.0,105960.0,0.002]
[1749336918114,1.08946304,105970.0,105960.0,0.002]
[1749336918720,1.0894637,105970.0,105960.0,0.002]
[1749336919318,1.0828347,105970.0,105960.0,0.002]
[1749336919517,1.08946395,105970.0,105960.0,0.002]
[1749336920361,1.08946948,105970.0,105960.0,0.002]
[1749336920773,1.08948423,105970.0,105960.0,0.002]
[1749336922232,1.08948457,105970.0,105960.0,0.002]
[1749336923448,1.07179154,105970.0,105960.0,0.002]
[1749336923649,1.08948447,105970.0,105960.0,0.002]
[1749336924038,1.57916447,105970.0,105960.0,0.002]
[1749336924888,1.57252963,105970.0,105960.0,0.002]
[1749336925106,1.5791646,105970.0,105960.0,0.002]
[1749336925308,1.57252997,105970.0,105960.0,0.002]
[1749336925489,1.5548367,105970.0,105960.0,0.002]
[1749336925708,1.56147167,105970.0,105960.0,0.002]
[1749336925921,1.57916494,105970.0,105960.0,0.002]
[1749336926147,1.56270494,105970.0,105960.0,0.002]
[1749336926363,1.15582555,105970.0,105960.0,0.002]
[1749336926531,1.45974209,105970.0,105960.0,0.24172506]
[1749336926731,1.44204882,105970.0,105960.0,0.24172506]
[1749336926934,1.45310624,105970.0,105960.0,0.24172506]
[1749336927131,1.45310611,105970.0,105960.0,0.23228781]
[1749336927355,1.45974092,105970.0,105960.0,0.23228781]
[1749336927959,1.45974081,105970.0,105960.0,0.23228781]
[1749336928184,1.45974004,105970.0,105960.0,0.23228781]
[1749336928384,1.45974001,105970.0,105960.0,0.23228781]
[1749336928592,1.44204768,105970.0,105960.0,0.23228781]
[1749336928798,1.45973812,105970.0,105960.0,0.23228781]
[1749336928995,1.4531042,105970.0,105960.0,0.23228781]
[1749336929341,1.27078555,105970.0,105960.0,0.25116187]
[1749336929581,1.19338765,105970.0,105960.0,0.25116204]
[1749336929785,1.17451547,105970.0,105960.0,0.24172497]
[1749336930007,1.1650792,105970.0,105960.0,0.23228781]
[1749336930209,1.16507909,105970.0,105960.0,0.23228781]
[1749336930411,1.16507909,105970.0,105960.0,0.25116222]
[1749336930614,1.17442778,105970.0,105960.0,0.25116222]
[1749336930831,1.16779394,105970.0,105960.0,0.25116222]
[1749336931034,1.17442774,105970.0,105960.0,0.25116222]
[1749336931625,1.17442774,105970.0,105960.0,0.24172506]
[1749336932323,1.17442198,105970.0,105960.0,0.24172506]
[1749336932530,1.17441934,105970.0,105960.0,0.24172506]
[1749336932933,1.15010379,105970.0,105960.0,0.24172506]
[1749336933093,1.17441934,105970.0,105960.0,0.24172506]
[1749336933307,1.16778783,105970.0,105960.0,0.24172506]
[1749336933512,1.17441381,105970.0,105960.0,0.24172506]
[1749336934401,1.15673379,105970.0,105960.0,0.24172506]
[1749336934765,1.17441381,105970.0,105960.0,0.24172506]
[1749336934966,1.16506487,105970.0,105960.0,0.24172506]
[1749336935653,1.15843128,105970.0,105960.0,0.24172506]
[1749336935931,1.16505994,105970.0,105960.0,0.24172506]
[1749336936091,1.14738351,105970.0,105960.0,0.24172506]
[1749336936271,1.15843129,105970.0,105960.0,0.24172506]
[1749336936489,1.16505995,105970.0,105960.0,0.24172506]
[1749336937223,1.16505995,105970.0,105960.0,0.23228781]
[1749336937562,1.16505995,105970.0,105960.0,0.24172506]
[1749336938000,1.14899209,105970.0,105960.0,0.24172542]
[1749336938406,1.13794598,105970.0,105960.0,0.24172542]
[1749336938612,1.69965977,105970.0,105960.0,0.24172542]
[1749336938953,1.6996588,105970.0,105960.0,0.24172542]
[1749336939155,1.6996588,105970.0,105960.0,0.25116276]
[1749336939552,1.68198598,105970.0,105960.0,0.25116276]
[1749336939802,1.68198551,105970.0,105960.0,0.25116276]
[1749336939996,1.69303086,105970.0,105960.0,0.24172542]
[1749336940201,1.69965806,105970.0,105960.0,0.24172542]
[1749336941047,1.69965748,105970.0,105960.0,0.24172542]
[1749336941217,1.68198535,105970.0,105960.0,0.24172542]
[1749336941420,1.69022098,105970.0,105960.0,0.24172542]
[1749336941967,1.69022098,105970.0,105960.0,0.23228799]
[1749336942309,1.69022098,105970.0,105960.0,0.24172542]
[1749336942530,1.69022096,105970.0,105960.0,0.24172542]
[1749336942745,1.6902209,105970.0,105960.0,0.24172542]
[1749336943031,1.68359384,105970.0,105960.0,0.24172542]
[1749336943227,1.69022103,105970.0,105960.0,0.24172542]
[1749336943428,1.68359421,105970.0,105960.0,0.24172542]
[1749336943564,1.69022141,105970.0,105960.0,0.24172542]
[1749336943766,1.69022141,105970.0,105960.0,0.23228799]
[1749336943967,1.69022168,105970.0,105960.0,0.23228799]
[1749336944717,1.68359448,105970.0,105960.0,0.23228799]
[1749336944924,1.69022178,105970.0,105960.0,0.23228799]
[1749336945101,1.68359537,105970.0,105960.0,0.23228799]
[1749336945269,1.690223,105970.0,105960.0,0.23228799]
[1749336946794,1.6725495,105970.0,105960.0,0.23228799]
[1749336946917,1.69022369,105970.0,105960.0,0.23228799]
[1749336947282,1.68359587,105970.0,105960.0,0.23228799]
[1749336947432,1.69022388,105970.0,105960.0,0.23228799]
[1749336947650,1.68359587,105970.0,105960.0,0.23228799]
[1749336947845,1.69022388,105970.0,105960.0,0.23228799]
[1749336948544,1.68359778,105970.0,105960.0,0.23228799]
[1749336948695,1.69022631,105970.0,105960.0,0.23228799]
[1749336949040,1.68359778,105970.0,105960.0,0.23228799]
[1749336949281,1.69022631,105970.0,105960.0,0.04353752]
[1749336949730,1.69022631,105970.0,105960.0,0.0341]
[1749336949953,1.69022694,105970.0,105960.0,0.0341]
[1749336950158,1.69022801,105970.0,105960.0,0.0341]
[1749336950379,1.69023022,105970.0,105960.0,0.0341]
[1749336951058,1.67255128,105970.0,105960.0,0.0341]
[1749336951285,1.69023104,105970.0,105960.0,0.0341]
[1749336951531,1.69023135,105970.0,105960.0,0.0341]
[1749336952406,1.69023606,105970.0,105960.0,0.0341]
[1749336952876,1.68360487,105970.0,105960.0,0.04353752]
[1749336953093,1.69023606,105970.0,105960.0,0.04353752]
[1749336953980,1.69023633,105970.0,105960.0,0.04353752]
[1749336954200,1.69023704,105970.0,105960.0,0.04353752]
[1749336954425,1.66592168,105970.0,105960.0,0.04353752]
[1749336954668,1.68361074,105970.0,105960.0,0.04353752]
[1749336954872,1.69024413,105970.0,105960.0,0.04353752]
[1749336955726,1.69024492,105970.0,105960.0,0.04353752]
[1749336955930,1.68361131,105970.0,105960.0,0.04353752]
[1749336956137,1.69026056,105970.0,105960.0,0.04353752]
[1749336956335,1.68362269,105970.0,105960.0,0.04353752]
[1749336956539,1.69026056,105970.0,105960.0,0.04353752]
[1749336957391,1.69026056,105970.0,105960.0,0.0341]
[1749336957569,1.68362269,105970.0,105960.0,0.0341]
[1749336957767,1.66592168,105970.0,105960.0,0.0341]
[1749336957970,1.68362269,105970.0,105960.0,0.0341]
[1749336958167,1.67255955,105970.0,105960.0,0.0341]
[1749336958370,1.69026554,105970.0,105960.0,0.0341]
[1749336958591,1.69026741,105970.0,105960.0,0.0341]
[1749336958984,1.69026733,105970.0,105960.0,0.22285047]
[1749336959398,1.6902673,105970.0,105960.0,0.22285047]
[1749336959605,1.68362759,105970.0,105960.0,0.22285047]
[1749336959797,1.6902673,105970.0,105960.0,0.22285047]
[1749336961710,1.68362754,105970.0,105960.0,0.22285047]
[1749336961912,1.69026723,105970.0,105960.0,0.23228799]
[1749336963436,1.69026719,105970.0,105960.0,0.23228799]
[1749336963644,1.69026719,105970.0,105960.0,0.0341]
[1749336964303,1.67256136,105970.0,105960.0,0.0341]
[1749336964525,1.6902672,105970.0,105960.0,0.0341]
[1749336965066,1.69026722,105970.0,105960.0,0.04353752]
[1749336965289,1.69026725,105970.0,105960.0,0.04353752]
[1749336966332,1.69026725,105970.0,105960.0,0.0341]
[1749336967162,1.69026724,105970.0,105960.0,0.0341]
[1749336967393,1.67256137,105970.0,105960.0,0.0341]
[1749336967606,1.69026723,105970.0,105960.0,0.0341]
[1749336968512,1.69026726,105970.0,105960.0,0.0341]
[1749336968966,1.69026724,105970.0,105960.0,0.0341]
[1749336969371,1.69026723,105970.0,105960.0,0.0341]
[1749336970257,1.69026733,105970.0,105960.0,0.0185]
[1749336971387,1.69026735,105970.0,105960.0,0.0185]
[1749336971579,1.69026735,105970.0,105960.0,0.002]
[1749336972609,1.68362754,105970.0,105960.0,0.002]
[1749336972830,1.69026626,105970.0,105960.0,0.002]
[1749336973424,1.69026561,105970.0,105960.0,0.002]
[1749336974187,1.69026535,105970.0,105960.0,0.002]
[1749336974624,1.67256095,105970.0,105960.0,0.002]
[1749336974835,1.66592168,105970.0,105960.0,0.002]
[1749336975036,1.69026568,105970.0,105960.0,0.002]
[1749336975594,1.6902652,105970.0,105960.0,0.002]
[1749336975812,1.69026388,105970.0,105960.0,0.002]
[1749336976183,1.66592168,105970.0,105960.0,0.0174]
[1749336976380,1.6836251,105970.0,105960.0,0.0174]
[1749336976876,1.69026388,105970.0,105960.0,0.0174]
[1749336977280,1.69026385,105970.0,105960.0,0.0174]
[1749336978010,1.66592168,105970.0,105960.0,0.0174]
[1749336978254,1.6902625,105970.0,105960.0,0.0174]
[1749336978614,1.6902625,105970.0,105960.0,0.002]
[1749336979354,1.69026227,105970.0,105960.0,0.002]
[1749336979773,1.67255985,105970.0,105960.0,0.002]
[1749336979989,1.69026165,105970.0,105960.0,0.002]
[1749336981170,1.69026117,105970.0,105960.0,0.002]
[1749336981604,1.69026099,105970.0,105960.0,0.002]
[1749336981843,1.67255967,105970.0,105960.0,0.002]
[1749336981992,1.69026099,105970.0,105960.0,0.002]
[1749336983194,1.6902609,105970.0,105960.0,0.002]
[1749336983426,1.69026065,105970.0,105960.0,0.002]
[1749336983632,1.69026054,105970.0,105960.0,0.002]
[1749336983838,1.68362267,105970.0,105960.0,0.002]
[1749336983988,1.69026054,105970.0,105960.0,0.002]
[1749336984392,1.70686054,105970.0,105960.0,0.002]
[1749336985263,1.70686047,105970.0,105960.0,0.002]
[1749336985403,1.68915955,105970.0,105960.0,0.002]
[1749336985609,1.70686044,105970.0,105960.0,0.002]
[1749336985856,1.68915955,105970.0,105960.0,0.002]
[1749336986005,1.70686053,105970.0,105960.0,0.002]
[1749336986239,1.70686038,105970.0,105960.0,0.002]
[1749336987062,1.70686001,105970.0,105960.0,0.002]
[1749336987673,1.6891594,105970.0,105960.0,0.002]
[1749336987871,1.70686,105970.0,105960.0,0.002]
[1749336988108,1.69026,105970.0,105960.0,0.002]
[1749336988313,1.72245975,105970.0,105960.0,0.002]
[1749336988938,1.72245973,105970.0,105960.0,0.002]
[1749336989179,1.72245982,105970.0,105960.0,0.002]
[1749336989297,1.7158221,105970.0,105960.0,0.002]
[1749336989502,1.70475933,105970.0,105960.0,0.002]
[1749336989706,1.72245973,105970.0,105960.0,0.002]
[1749336990457,1.69025973,105970.0,105960.0,0.002]
[1749336991289,1.70635989,105970.0,105960.0,0.002]
[1749336991534,1.68865937,105970.0,105960.0,0.002]
[1749336991742,1.70635988,105970.0,105960.0,0.002]
[1749336992596,1.70635986,105970.0,105960.0,0.002]
[1749336992793,1.68865936,105970.0,105960.0,0.002]
[1749336993217,1.68202168,105970.0,105960.0,0.002]
[1749336993413,1.70635984,105970.0,105960.0,0.002]
[1749336993755,1.68865936,105970.0,105960.0,0.002]
[1749336993963,1.72185985,105970.0,105960.0,0.002]
[1749336994380,1.72186037,105970.0,105960.0,0.002]
[1749336994778,1.81162225,105970.0,105960.0,0.002]
[1749336994986,1.84662549,105970.0,105960.0,0.002]
[1749336995411,1.84662561,105970.0,105960.0,0.002]
[1749336996414,1.82228516,105970.0,105960.0,0.002]
[1749336996616,1.83997997,105970.0,105960.0,0.002]
[1749336996842,1.84661552,105970.0,105960.0,0.002]
[1749336997613,1.84661139,105970.0,105960.0,0.002]
[1749336997794,1.84660985,105970.0,105960.0,0.002]
[1749336998236,1.82228516,105970.0,105960.0,0.002]
[1749336998437,1.84661014,105970.0,105960.0,0.002]
[1749336998666,1.8399762,105970.0,105960.0,0.002]
[1749336998886,1.84661043,105970.0,105960.0,0.002]
[1749336999632,1.82891932,105970.0,105960.0,0.002]
[1749336999989,1.8289177,105970.0,105960.0,0.002]
[1749337000192,1.84660458,105970.0,105960.0,0.002]
[1749337000383,1.84660461,105970.0,105960.0,0.002]
[1749337001684,1.8466036,105970.0,105960.0,0.002]
[1749337001907,1.84660085,105970.0,105960.0,0.002]
[1749337002134,1.84660064,105970.0,105960.0,0.002]
[1749337003070,1.8466,105970.0,105960.0,0.002]
[1749337003727,1.83996735,105970.0,105960.0,0.002]
[1749337004464,1.84659817,105970.0,105960.0,0.002]
[1749337004711,1.82891598,105970.0,105960.0,0.002]
[1749337004938,1.84659817,105970.0,105960.0,0.002]
[1749337005161,1.83996735,105970.0,105960.0,0.002]
[1749337005325,1.839966,105970.0,105960.0,0.002]
[1749337005619,1.82891547,105970.0,105960.0,0.002]
[1749337005774,1.84659631,105970.0,105960.0,0.002]
[1749337006813,1.8465957,105970.0,105960.0,0.002]
[1749337006949,1.83996538,105970.0,105960.0,0.002]
[1749337007145,1.84659546,105970.0,105960.0,0.002]
[1749337007377,1.83996526,105970.0,105960.0,0.002]
[1749337007582,1.8465953,105970.0,105960.0,0.002]
[1749337009419,1.84659457,105970.0,105960.0,0.002]
[1749337010072,1.84659486,105970.0,105960.0,0.002]
[1749337010488,1.84659507,105970.0,105960.0,0.002]
[1749337010905,1.82228516,105970.0,105960.0,0.002]
[1749337011102,1.8611364,105970.0,105960.0,0.002]
[1749337011971,1.84345611,105970.0,105960.0,0.002]
[1749337012175,1.86113477,105970.0,105960.0,0.002]
[1749337012804,1.85450591,105970.0,105960.0,0.002]
[1749337013006,1.84345597,105970.0,105960.0,0.002]
[1749337013212,1.86113587,105970.0,105960.0,0.002]
[1749337013634,2.00753535,105970.0,105960.0,0.002]
[1749337014218,2.00453535,105970.0,105960.0,0.002]
[1749337014425,2.0151779,105970.0,105960.0,0.002]
[1749337014632,2.08022911,105970.0,105960.0,0.002]
[1749337014839,2.08022945,105970.0,105960.0,0.002]
[1749337015043,2.06717855,105970.0,105960.0,0.002]
[1749337015248,2.08486018,105970.0,105960.0,0.002]
[1749337015457,1.9914607,105970.0,105960.0,0.002]
[1749337015659,1.9884607,105970.0,105960.0,0.002]
[1749337015804,1.9844592,105970.0,105960.0,0.002]
[1749337016028,1.98783009,105970.0,105960.0,0.002]
[1749337016224,1.97677757,105970.0,105960.0,0.002]
[1749337016427,1.99445681,105970.0,105960.0,0.002]
[1749337016639,1.99445741,105970.0,105960.0,0.002]
[1749337017933,1.97677817,105970.0,105960.0,0.002]
[1749337018143,1.98782757,105970.0,105960.0,0.002]
[1749337018328,1.97677812,105970.0,105960.0,0.002]
[1749337018503,1.99445723,105970.0,105960.0,0.002]
[1749337019281,1.98782757,105970.0,105960.0,0.002]
[1749337019598,1.99445492,105970.0,105960.0,0.002]
[1749337019816,1.98782589,105970.0,105960.0,0.002]
[1749337020021,1.99445492,105970.0,105960.0,0.002]
[1749337020364,1.97014846,105970.0,105960.0,0.002]
[1749337020495,1.99446012,105970.0,105960.0,0.002]
[1749337020707,2.0908596,105970.0,105960.0,0.002]
[1749337020922,2.08422915,105970.0,105960.0,0.002]
[1749337021266,2.09085921,105970.0,105960.0,0.002]
[1749337022247,2.0908636,105970.0,105960.0,0.002]
[1749337022653,2.12856608,105970.0,105960.0,0.002]
[1749337023250,2.12856775,105970.0,105960.0,0.002]
[1749337023701,2.12856677,105970.0,105960.0,0.002]
[1749337024432,2.12853591,105970.0,105960.0,0.002]
[1749337025024,2.12853565,105970.0,105960.0,0.002]
[1749337025237,6.25333865,105970.0,105960.0,0.002]
[1749337025442,0.54764447,105950.0,105940.0,0.002]
[1749337025661,1.08071117,105950.0,105940.0,0.002]
[1749337025811,1.08861964,105950.0,105940.0,0.002]
[1749337026027,1.09525484,105950.0,105940.0,0.002]
[1749337026236,1.09525478,105950.0,105940.0,0.002]
[1749337026441,1.07756805,105950.0,105940.0,0.002]
[1749337026676,1.10134488,105950.0,105940.0,0.002]
[1749337027090,1.10133372,105950.0,105940.0,0.002]
[1749337027292,1.09470425,105950.0,105940.0,0.002]
[1749337027491,1.1013347,105950.0,105940.0,0.002]
[1749337027859,1.10133469,105950.0,105940.0,0.002]
[1749337028062,1.07702566,105950.0,105940.0,0.002]
[1749337028278,1.10133471,105950.0,105940.0,0.002]
[1749337029025,1.10133459,105950.0,105940.0,0.002]
[1749337029441,1.08365508,105950.0,105940.0,0.002]
[1749337029627,1.07702566,105950.0,105940.0,0.002]
[1749337029822,1.07702566,105950.0,105940.0,0.017]
[1749337029823,1.09470391,105950.0,105940.0,0.017]
[1749337030029,0.80797325,105950.0,105940.0,0.017]
[1749337030229,1.10133325,105950.0,105940.0,0.017]
[1749337030516,1.10133325,105950.0,105940.0,0.0326]
[1749337030871,1.09470391,105950.0,105940.0,0.0326]
[1749337031083,1.10133228,105950.0,105940.0,0.0326]
[1749337031444,0.67788481,105950.0,105940.0,0.0326]
[1749337031645,0.95604985,105950.0,105940.0,0.0326]
[1749337031878,0.96267693,105950.0,105940.0,0.0326]
[1749337032074,0.96267692,105950.0,105940.0,0.0326]
[1749337032723,0.96267753,105950.0,105940.0,0.0326]
[1749337033128,0.96267918,105950.0,105940.0,0.0326]
[1749337033263,0.96267896,105950.0,105940.0,0.0326]
[1749337033472,0.96267895,105950.0,105940.0,0.0326]
[1749337034997,0.96268257,105950.0,105940.0,0.0326]
[1749337035854,0.96268361,105950.0,105940.0,0.0326]
[1749337036059,1.45244361,105950.0,105940.0,0.0326]
[1749337036270,1.45244364,105950.0,105940.0,0.0326]
[1749337036472,1.43452433,105950.0,105940.0,0.0326]
[1749337036674,1.42789459,105950.0,105940.0,0.0326]
[1749337036922,1.45220727,105950.0,105940.0,0.0326]
[1749337037160,0.72117648,105950.0,105940.0,0.2497032]
[1749337037373,1.11220649,105950.0,105940.0,0.24970364]
[1749337037570,1.10557581,105950.0,105940.0,0.24970364]
[1749337037917,1.10557424,105950.0,105940.0,0.24970364]
[1749337038126,1.10557424,105950.0,105940.0,0.25914258]
[1749337038314,1.10557424,105950.0,105940.0,0.25914276]
[1749337038514,1.10557424,105950.0,105940.0,0.2685817]
[1749337038828,1.10557424,105950.0,105940.0,0.26858161]
[1749337039185,1.10557424,105950.0,105940.0,0.26858108]
[1749337039385,1.10557559,105950.0,105940.0,0.26858108]
[1749337039802,1.10557559,105950.0,105940.0,0.24970346]
[1749337039973,1.10557559,105950.0,105940.0,0.2591424]
[1749337040373,0.91680731,105950.0,105940.0,0.26858117]
[1749337040550,0.90856472,105950.0,105940.0,0.26858117]
[1749337040750,0.92624453,105950.0,105940.0,0.26858117]
[1749337041144,1.11501281,105950.0,105940.0,0.24970346]
[1749337041549,1.11501281,105950.0,105940.0,0.25914231]
[1749337042032,1.10557404,105950.0,105940.0,0.24970346]
[1749337042235,1.10557404,105950.0,105940.0,0.2591424]
[1749337042439,1.10557404,105950.0,105940.0,0.26858125]
[1749337042884,1.08789504,105950.0,105940.0,0.26858125]
[1749337043122,1.10553311,105950.0,105940.0,0.26858081]
[1749337043427,0.91676483,105950.0,105940.0,0.26858081]
[1749337043649,0.91676438,105950.0,105940.0,0.26858037]
[1749337043827,0.92620264,105950.0,105940.0,0.26858037]
[1749337044039,1.11497091,105950.0,105940.0,0.24026407]
[1749337044511,0.60464804,105950.0,105940.0,0.96277369]
[1749337044713,0.58697012,105950.0,105940.0,0.70614939]
[1749337045415,0.58397012,105950.0,105940.0,0.70614939]
[1749337045823,0.58397012,105950.0,105940.0,0.41293148]
[1749337045963,0.58397012,105950.0,105940.0,0.70714939]
[1749337046169,0.58097012,105950.0,105940.0,0.70714939]
[1749337046368,0.58097012,105950.0,105940.0,0.70914939]
[1749337047091,0.58097012,105950.0,105940.0,0.67155578]
[1749337048034,0.58097012,105950.0,105940.0,0.37733787]
[1749337048194,0.58097012,105950.0,105940.0,0.67155578]
[1749337048742,0.58097012,105950.0,105940.0,0.64332014]
[1749337049794,0.58097012,105950.0,105940.0,0.34910223]